bitfinex/quotes_ETHUSD_20241104
["timestamp","ask_amount","ask_price","bid_price","bid_amount"]
[1730759711176,0.795,2389.1,2388.7,4.18634]
[1730759711381,0.96113038,2389.1,2388.6,4.18637]
[1730759712182,0.55,2389.0,2388.4,4.9965]
[1730759712367,0.08030602,2388.9,2388.5,4.18668]
[1730759712542,0.16558946,2388.9,2388.5,4.18668]
[1730759712881,0.8156,2388.8,2387.9,0.8097]
[1730759713090,0.8156,2388.8,2388.7,4.18637]
[1730759713293,0.08519735,2388.8,2388.7,4.18637]
[1730759713458,0.08519735,2388.8,2388.6,4.18652]
[1730759713459,0.89590602,2389.0,2388.6,4.18652]
[1730759713643,0.0851912,2388.9,2388.6,8.37289]
[1730759713849,0.0851912,2388.9,2388.6,4.18643]
[1730759714077,0.0851912,2388.9,2388.5,4.18668]
[1730759714385,0.0851912,2388.9,2388.7,4.18622]
[1730759714591,0.0851912,2388.9,2388.7,4.18637]
[1730759715368,0.0851912,2388.9,2388.8,4.1862]
[1730759716295,0.819,2389.4,2388.7,4.18635]
[1730759716588,0.0851912,2389.3,2389.1,4.18558]
[1730759716788,0.16549722,2389.3,2388.9,8.37178]
[1730759717587,0.16549722,2389.3,2389.0,4.18583]
[1730759717788,0.0851912,2389.3,2389.2,4.1855]
[1730759718347,0.0851912,2389.3,2389.2,4.6606107]
[1730759718892,0.89930602,2389.6,2389.2,4.6606107]
[1730759719191,0.08532648,2389.5,2389.3,4.18525]
[1730759719750,0.08532648,2389.5,2389.2,8.8461107]
[1730759720159,0.08532648,2389.5,2389.3,4.18532]
[1730759720378,0.08532648,2389.5,2389.3,4.18521]
[1730759720853,0.08532648,2389.5,2389.4,4.18515]
[1730759721495,0.7965,2389.8,2389.4,0.88457607]
[1730759721788,0.7965,2389.8,2389.7,4.18462]
[1730759721988,0.85910602,2390.1,2389.8,4.18437]
[1730759722695,0.85910602,2390.1,2389.9,4.18413]
[1730759722920,0.7788,2390.1,2389.9,4.18413]
[1730759723251,0.7788,2390.1,2390.0,4.1841]
[1730759723761,0.7788,2390.1,2389.8,8.36873]
[1730759725186,0.7788,2390.1,2389.9,4.18415]
[1730759725694,0.7788,2390.1,2389.8,4.18436]
[1730759725885,0.7788,2390.1,2389.9,4.18415]
[1730759726264,0.08030602,2390.3,2390.0,4.18409]
[1730759726458,0.08030602,2390.3,2390.0,0.7929]
[1730759726665,0.08030602,2390.5,2390.1,4.18392]
[1730759726970,1.62498233,2390.6,2390.3,4.18353]
[1730759728376,0.08030602,2390.5,2390.2,4.18365]
[1730759728799,0.08030602,2390.5,2390.3,4.18344]
[1730759729111,0.08568914,2390.4,2390.3,4.18344]
[1730759729281,1.70528835,2390.6,2390.3,4.18344]
[1730759729475,0.08568914,2390.5,2390.4,4.18339]
[1730759730387,0.08568914,2390.5,2390.2,4.18365]
[1730759730579,0.08568914,2390.5,2390.3,4.18353]
[1730759731764,0.08568914,2390.5,2390.4,4.1834]
[1730759732101,0.16375693,2390.5,2390.4,4.1834]
[1730759735465,0.16375693,2390.5,2390.4,5.827095]
[1730759736571,0.16375693,2390.5,2390.4,5.91075469]
[1730759736801,0.16375693,2390.5,2390.4,5.91075459]
[1730759737208,0.16375693,2390.5,2390.4,5.827095]
[1730759739103,0.16375693,2390.5,2390.4,5.91075474]
[1730759739302,0.16375693,2390.5,2390.4,5.9107544]
[1730759739504,0.16375693,2390.5,2390.4,5.827095]
[1730759739811,0.16375693,2390.5,2390.4,5.9107547]
[1730759741112,0.16375693,2390.5,2390.4,5.827095]
[1730759741475,0.16375693,2390.5,2390.4,5.91075478]
[1730759742016,0.16375693,2390.5,2390.4,5.827095]
[1730759742383,0.16375693,2390.5,2390.4,5.91075272]
[1730759742578,0.16375693,2390.5,2390.4,5.827095]
[1730759743197,0.85648233,2390.6,2390.5,4.18322]
[1730759743510,0.85648233,2390.6,2390.5,5.6026065]
[1730759743681,0.83070602,2391.2,2390.5,5.6026065]
[1730759743892,0.16419908,2391.1,2391.0,4.18233]
[1730759744418,0.16419908,2391.1,2390.9,4.18243]
[1730759745276,0.7928,2391.0,2390.6,4.18305]
[1730759745483,4.97515,2391.0,2390.6,4.18305]
[1730759745677,0.16419908,2390.9,2390.6,4.18305]
[1730759746321,0.16419908,2390.9,2390.5,1.4193865]
[1730759746519,0.16419908,2390.9,2390.5,4.18322]
[1730759746691,0.16419908,2390.9,2390.6,4.18293]
[1730759751626,0.8112,2390.8,2390.3,4.18346]
[1730759751796,0.8112,2390.8,2390.4,4.18332]
[1730759752003,0.16435873,2390.7,2390.4,4.18332]
[1730759752347,0.8112,2390.8,2390.4,4.18332]
[1730759752506,0.16435873,2390.7,2390.4,4.18332]
[1730759752711,0.8112,2390.8,2390.4,4.18332]
[1730759752917,0.16435873,2390.7,2390.4,4.18332]
[1730759753118,0.8112,2390.8,2390.4,4.18332]
[1730759753435,0.16435873,2390.7,2390.4,4.18332]
[1730759753653,0.8112,2390.6,2389.9,8.36854]
[1730759753949,0.16435873,2390.5,2390.3,8.36696]
[1730759755416,0.16435873,2390.5,2390.3,4.18348]
[1730759755717,0.16435873,2390.5,2390.3,8.36697]
[1730759756126,0.16435873,2390.5,2390.3,4.18348]
[1730759758059,0.16435873,2390.5,2390.2,4.18374]
[1730759758357,0.16435873,2390.5,2390.0,4.18407]
[1730759758358,0.8112,2390.3,2390.0,4.18407]
[1730759758658,0.8112,2390.3,2390.1,0.23331041]
[1730759758659,0.16426663,2390.2,2390.1,0.23331041]
[1730759759018,0.89150602,2390.3,2389.9,4.18417]
[1730759759356,0.16410698,2390.2,2390.0,0.2333139]
[1730759759563,0.89150602,2390.3,2389.9,4.18417]
[1730759759863,0.16410698,2390.2,2390.0,0.23327989]
[1730759760059,0.16410698,2390.2,2389.9,8.36836]
[1730759760349,0.16410698,2390.1,2390.0,0.23329636]
[1730759760548,0.16410698,2390.1,2389.7,4.18449]
[1730759760549,4.99512,2390.1,2389.7,4.18449]
[1730759760750,0.244413,2390.0,2389.8,0.23337743]
[1730759760959,0.55,2389.8,2389.6,0.3734222]
[1730759761167,0.55,2389.8,2389.4,4.18513]
[1730759761168,0.97515959,2389.7,2389.3,4.1852]
[1730759761371,0.08030602,2389.6,2389.2,4.18548]
[1730759761571,0.08030602,2389.6,2389.1,4.18555]
[1730759761730,0.16395959,2389.5,2389.1,4.18555]
[1730759762079,4.34893959,2389.5,2389.0,4.18584]
[1730759762226,0.90810602,2389.4,2389.0,4.18584]
[1730759762671,0.16386745,2389.3,2389.0,4.18584]
[1730759763169,0.16386745,2389.3,2388.9,4.18592]
[1730759763329,4.34920745,2389.3,2388.8,4.18619]
[1730759763678,0.08030602,2389.2,2388.8,4.18619]
[1730759764084,0.96574628,2389.1,2388.7,4.18626]
[1730759764284,0.96574628,2389.1,2388.7,8.37251]
[1730759764575,0.96574628,2389.1,2388.7,8.37253]
[1730759764985,0.08030602,2389.0,2388.6,4.18643]
[1730759765143,0.16340045,2388.9,2388.6,4.18643]
[1730759765983,0.16340045,2388.9,2388.8,4.1862]
[1730759766347,0.7969,2389.5,2389.2,4.18537]
[1730759766583,0.15704058,2389.4,2389.2,4.18537]
[1730759766786,0.15704058,2389.4,2389.2,8.37077]
[1730759767082,0.15704058,2389.4,2389.3,4.18532]
[1730759771379,0.85689075,2389.6,2389.4,4.18508]
[1730759771588,0.15725034,2389.5,2389.4,4.18508]
[1730759771761,0.15725034,2389.5,2389.3,4.18531]
[1730759771964,0.15725034,2389.5,2389.2,4.18539]
[1730759772279,0.15725034,2389.5,2389.4,4.18515]
[1730759774393,0.15725034,2389.5,2389.4,5.098527]
[1730759778096,0.15725034,2389.5,2389.4,5.18221847]
[1730759778290,0.85689075,2389.6,2389.4,5.18221847]
[1730759778493,1.76344102,2390.3,2389.9,4.18424]
[1730759778722,0.809,2390.3,2390.1,4.18384]
[1730759778881,0.15725034,2390.2,2390.1,4.18384]
[1730759779084,0.7903,2390.5,2390.1,4.26751559]
[1730759779383,0.15725034,2390.4,2390.3,4.18348]
[1730759780279,0.15725034,2390.4,2390.2,4.18374]
[1730759781488,0.15725034,2390.4,2390.2,3.678035]
[1730759784535,0.15725034,2390.4,2390.3,4.18357]
[1730759786211,0.55,2390.6,2390.3,4.18357]
[1730759786414,0.15826179,2390.5,2390.3,4.18357]
[1730759786635,0.15826179,2390.5,2390.2,4.18374]
[1730759786636,0.15826179,2390.5,2390.4,4.1834]
[1730759786936,0.86080602,2390.7,2390.4,4.1834]
[1730759786937,0.7805,2390.7,2390.4,4.1834]
[1730759787293,0.15832344,2390.6,2390.4,4.1834]
[1730759787645,0.15832344,2390.6,2390.5,4.93802]
[1730759787996,0.86080602,2391.1,2390.5,0.7548]
[1730759788200,0.15832344,2391.0,2390.7,4.18273]
[1730759788726,0.15832344,2391.0,2390.9,4.18252]
[1730759789035,0.15832344,2391.0,2390.8,4.18258]
[1730759789495,0.15832344,2391.0,2390.8,8.3652]
[1730759789698,0.15832344,2391.0,2390.9,4.18252]
[1730759791006,0.88900602,2391.3,2391.0,4.18229]
[1730759791196,0.15904459,2391.2,2391.0,4.18229]
[1730759791532,0.88900602,2391.3,2391.0,4.18229]
[1730759791723,0.15904459,2391.1,2391.0,4.18229]
[1730759791930,0.88900602,2391.3,2391.0,4.18229]
[1730759792236,0.88900602,2391.3,2390.9,4.1825]
[1730759792460,0.15904459,2391.2,2390.9,4.1825]
[1730759792595,0.15904459,2391.2,2391.0,4.18235]
[1730759792999,0.8087,2391.3,2390.5,0.7548]
[1730759793201,0.15916781,2391.2,2391.1,4.18206]
[1730759793536,1.74525295,2391.5,2391.2,4.18197]
[1730759793838,1.66494693,2391.5,2391.2,4.18184]
[1730759794207,1.66494693,2391.5,2391.3,4.18182]
[1730759794542,1.66494693,2391.5,2391.2,4.18184]
[1730759796144,1.66494693,2391.5,2391.3,4.18182]
[1730759796836,1.66494693,2391.5,2391.2,4.18184]
[1730759797829,1.66494693,2391.5,2391.3,4.18172]
[1730759798001,1.66494693,2391.5,2391.4,4.18165]
[1730759798199,1.66494693,2391.5,2391.3,8.36343]
[1730759798401,1.66494693,2391.5,2391.3,4.18171]
[1730759798402,0.85624693,2391.5,2391.3,4.18171]
[1730759798639,0.85624693,2391.5,2391.3,8.36345]
[1730759798943,0.85624693,2391.5,2391.3,4.18171]
[1730759801218,0.85624693,2391.5,2391.4,4.18165]
[1730759803844,1.01542091,2391.5,2391.4,4.18165]
[1730759804343,0.15917398,2391.5,2391.4,5.01305]
[1730759804665,0.0588784,2392.0,2391.4,5.01305]
[1730759804666,0.0588784,2392.0,2391.7,4.18103]
[1730759804817,0.0588784,2392.0,2391.7,8.36206]
[1730759805017,0.0588784,2392.0,2391.7,8.36207]
[1730759805232,0.0588784,2392.0,2391.8,4.18087]
[1730759805741,0.0588784,2392.0,2391.8,4.18092]
[1730759806266,0.0588784,2392.0,2391.9,0.7973]
[1730759806447,0.0588784,2392.0,2391.9,4.97807]
[1730759807444,0.0588784,2392.0,2391.9,5.63148671]
[1730759811955,0.0588784,2392.0,2391.9,5.71508479]
[1730759812237,0.0588784,2392.0,2391.9,8.86507997]
[1730759813055,0.0588784,2392.0,2391.9,9.23838867]
[1730759813270,0.0588784,2392.0,2391.9,9.23830309]
[1730759815875,8.4e-06,2392.0,2391.9,8.83374309]
[1730759816168,0.08030602,2393.1,2392.8,4.1791]
[1730759816375,0.93148442,2393.2,2392.8,4.1791]
[1730759816535,0.15042279,2393.0,2392.9,4.17902]
[1730759816735,0.8511784,2393.2,2392.9,4.17902]
[1730759816979,0.15042279,2393.0,2392.9,4.17902]
[1730759817473,0.8511784,2393.2,2392.9,4.17902]
[1730759817709,0.15060247,2393.0,2392.9,4.17902]
[1730759817896,0.8511784,2393.2,2392.9,4.17902]
[1730759818206,0.15060247,2393.0,2392.9,4.17902]
[1730759818723,0.8511784,2393.2,2392.9,4.17902]
[1730759818874,0.15059627,2393.0,2392.9,4.17902]
[1730759819069,0.8511784,2393.2,2392.8,4.96561]
[1730759819299,4.32950203,2393.0,2392.6,4.17942]
[1730759819479,4.17869,2393.1,2392.6,4.17942]
[1730759819677,0.15065203,2392.9,2392.6,4.17942]
[1730759820011,4.25899602,2393.1,2392.6,4.17942]
[1730759820517,0.7673,2392.8,2392.1,0.8285]
[1730759820827,0.7673,2392.6,2392.0,4.18057]
[1730759821116,5.02745602,2392.5,2391.9,4.18065]
[1730759821411,5.02745602,2392.5,2391.9,5.099649]
[1730759821412,4.17994,2392.4,2391.9,5.099649]
[1730759821610,4.17994,2392.4,2391.9,4.18065]
[1730759821912,0.1505653,2392.3,2391.9,4.18065]
[1730759822076,0.1505653,2392.3,2392.0,4.18053]
[1730759822276,0.1505653,2392.3,2392.0,4.18051]
[1730759822501,5.02745602,2392.5,2392.0,8.36102]
[1730759822812,0.1505653,2392.2,2392.1,4.18042]
[1730759823013,5.02745602,2392.5,2392.1,4.18042]
[1730759823175,0.15065214,2392.2,2392.1,4.18042]
[1730759823376,4.94715,2392.5,2392.1,4.18042]
[1730759823594,0.15064595,2392.2,2392.1,4.18042]
[1730759823904,0.15055918,2392.2,2392.1,4.18039]
[1730759824075,4.94715,2392.5,2392.1,4.18039]
[1730759824277,0.15055918,2392.2,2392.1,4.18039]
[1730759824476,0.7673,2392.5,2392.1,4.18039]
[1730759824690,0.15055918,2392.2,2392.1,4.18039]
[1730759824889,0.7673,2392.5,2392.1,4.18039]
[1730759825109,0.15055918,2392.2,2392.1,4.18039]
[1730759825282,0.7673,2392.5,2392.1,4.18039]
[1730759825481,0.15055918,2392.2,2392.1,4.18039]
[1730759825713,0.7673,2392.5,2392.2,4.18024]
[1730759826206,0.7673,2392.5,2392.2,8.36038]
[1730759826410,4.25976602,2392.7,2392.2,8.36038]
[1730759826411,0.7803,2392.7,2392.4,4.17974]
[1730759826617,0.7803,2392.7,2392.3,4.18007]
[1730759826910,0.7803,2392.7,2392.5,4.17969]
[1730759827311,4.25933602,2392.9,2392.5,4.17969]
[1730759827312,0.08030602,2392.9,2392.5,0.7544]
[1730759827535,0.7803,2393.1,2392.9,8.35791]
[1730759827723,0.0588784,2393.2,2393.0,4.17885]
[1730759828220,0.0588784,2393.2,2392.9,4.17891]
[1730759828388,0.0588784,2393.2,2393.0,4.17877]
[1730759828708,0.0588784,2393.2,2393.1,4.17868]
[1730759829574,0.0588784,2393.2,2393.1,5.014425]
[1730759830487,0.0588784,2393.2,2393.1,5.4814673]
[1730759834023,0.0588784,2393.2,2393.1,5.24794592]
[1730759834227,0.0588784,2393.2,2393.1,5.48130483]
[1730759834862,0.0588784,2393.2,2393.1,5.8544404]
[1730759835530,0.0588784,2393.2,2393.1,5.48130483]
[1730759836366,0.0588784,2393.2,2393.1,5.85441414]
[1730759836734,0.0588784,2393.2,2393.1,5.24778391]
[1730759837251,0.0588784,2393.2,2393.1,5.62094759]
[1730759837642,0.0588784,2393.2,2393.1,5.014425]
[1730759837840,0.0588784,2393.2,2393.1,5.24763705]
[1730759839875,0.0588784,2393.2,2393.1,5.62087332]
[1730759840176,0.0588784,2393.2,2393.1,4.99613205]
[1730759840638,0.0588784,2393.2,2393.1,5.36931441]
[1730759841734,0.0588784,2393.2,2393.1,4.99612282]
[1730759841938,0.0588784,2393.2,2393.1,5.36926517]
[1730759842190,0.0588784,2393.2,2393.1,9.16806588]
[1730759842979,8.4e-06,2393.2,2393.1,9.16806588]
[1730759843546,8.4e-06,2393.2,2393.1,9.01752788]
[1730759845877,1.66468104,2394.2,2394.1,4.17693]
[1730759845878,0.85538104,2394.2,2394.1,4.17693]
[1730759846177,1.00772399,2394.2,2394.1,4.17693]
[1730759846552,0.85538104,2394.2,2394.1,4.17693]
[1730759846876,0.0588784,2394.4,2394.0,4.98727]
[1730759846877,0.0588784,2394.4,2394.3,4.17658]
[1730759847076,0.21135131,2394.4,2394.3,7.17658]
[1730759847287,0.21135131,2394.4,2394.3,8.311911]
[1730759847979,0.0588784,2394.4,2394.3,8.311911]
[1730759848557,0.0588784,2394.4,2394.3,9.132111]
[1730759848744,0.0588784,2394.4,2394.3,9.36430736]
[1730759849250,0.0588784,2394.4,2394.3,9.132111]
[1730759849866,0.0588784,2394.4,2394.3,9.36400247]
[1730759850441,0.0588784,2394.4,2394.3,9.132111]
[1730759850844,0.0588784,2394.4,2394.3,9.122111]
[1730759854869,0.0588784,2394.4,2394.3,9.3531182]
[1730759855808,0.0588784,2394.4,2394.3,10.00276673]
[1730759856011,0.7943,2395.2,2395.1,4.17519]
[1730759856379,0.94818345,2395.2,2395.1,4.17519]
[1730759856578,0.15388345,2395.2,2395.1,4.17519]
[1730759856878,0.7943,2395.5,2395.0,4.17534]
[1730759857065,0.15388345,2395.4,2395.3,4.17467]
[1730759858269,0.15388345,2395.4,2395.3,5.085433]
[1730759860104,0.15388345,2395.4,2395.0,4.1753]
[1730759860304,0.0588784,2395.6,2395.1,4.1751]
[1730759860491,0.15434706,2395.5,2395.1,4.1751]
[1730759860892,0.15434706,2395.5,2395.2,4.17501]
[1730759861197,4.95656,2395.4,2395.0,4.17535]
[1730759861561,0.15427291,2395.3,2395.0,4.17535]
[1730759863905,0.7766,2395.2,2394.8,4.1757]
[1730759864097,0.7766,2395.2,2394.9,0.08350095]
[1730759864098,0.15417402,2395.1,2394.9,0.08350095]
[1730759864300,0.7766,2395.0,2394.8,4.1757]
[1730759864618,0.7766,2395.0,2394.9,0.08350277]
[1730759867290,0.7766,2395.0,2394.9,4.25903277]
[1730759868622,0.7766,2395.0,2394.9,0.08350277]
[1730759868792,0.7766,2395.0,2394.7,0.08350196]
[1730759868988,0.7766,2395.0,2394.6,4.17599]
[1730759868989,0.7766,2395.0,2394.6,8.35191]
[1730759869222,0.7766,2395.0,2394.7,4.25936634]
[1730759870790,0.7766,2395.0,2394.8,4.1757]
[1730759871309,0.7766,2395.0,2394.8,8.35132]
[1730759871700,0.7766,2395.0,2394.9,4.25903307]
[1730759872329,0.7766,2395.0,2394.9,4.40819069]
[1730759873332,0.7766,2395.0,2394.9,4.49169177]
[1730759873622,1.3396,2395.4,2395.0,4.17536]
[1730759873827,5.51428,2395.4,2395.0,4.17536]
[1730759874607,1.3396,2395.4,2395.1,4.17518]
[1730759874917,1.3396,2395.4,2395.0,4.17525]
[1730759875096,1.3396,2395.4,2395.1,0.23286495]
[1730759875302,1.3396,2395.4,2395.0,4.25874871]
[1730759875529,1.3396,2395.4,2395.1,0.23304828]
[1730759875714,1.3396,2395.4,2395.0,4.25874871]
[1730759875914,1.3396,2395.4,2395.1,0.23303851]
[1730759876119,1.3396,2395.4,2395.2,0.23303851]
[1730759876319,1.3396,2395.4,2395.0,4.25874871]
[1730759876528,1.3396,2395.4,2395.1,0.23300337]
[1730759876729,1.3396,2395.4,2395.2,0.23300337]
[1730759876900,1.3396,2395.4,2395.0,4.17525]
[1730759877101,1.3396,2395.4,2395.1,0.23297306]
[1730759877300,1.3396,2395.4,2395.2,0.23297306]
[1730759877501,1.3396,2395.4,2395.0,4.17525]
[1730759877700,1.3396,2395.4,2395.1,0.2329841]
[1730759877933,1.3396,2395.4,2395.2,0.2329841]
[1730759878114,1.3396,2395.4,2395.0,4.17525]
[1730759878316,1.3396,2395.4,2395.1,0.23298668]
[1730759878536,1.3396,2395.4,2395.2,0.23298668]
[1730759878841,5.51426,2395.4,2395.0,4.17525]
[1730759879013,0.15408131,2395.3,2395.1,0.60581237]
[1730759879219,0.15408131,2395.3,2395.2,0.2329979]
[1730759881054,0.15408131,2395.3,2395.2,0.23298554]
[1730759883147,0.15408131,2395.3,2395.2,4.40799554]
[1730759883652,0.15408131,2395.3,2395.2,0.23298554]
[1730759885012,0.15408131,2395.3,2395.2,4.40799554]
[1730759885619,0.15408131,2395.3,2395.2,5.26631309]
[1730759886054,0.8561784,2395.6,2395.3,4.17477]
[1730759888521,1.72655712,2395.6,2395.3,4.17477]
[1730759889286,1.72655712,2395.6,2395.4,4.17457]
[1730759889591,0.92925712,2395.6,2395.4,4.17457]
[1730759889803,0.92925712,2395.6,2395.4,8.34915]
[1730759889964,0.0588784,2395.6,2395.5,4.17449]
[1730759891089,0.0588784,2395.6,2395.5,4.4074436]
[1730759891382,0.0588784,2395.6,2395.5,4.17449]
[1730759891550,0.0588784,2395.6,2395.5,5.1699406]
[1730759892587,0.0588784,2395.6,2395.5,0.9954506]
[1730759893090,0.0588784,2395.6,2395.5,5.48625203]
[1730759893249,0.0588784,2395.6,2395.5,5.1699406]
[1730759893447,0.0588784,2395.6,2395.5,5.40275791]
[1730759893690,0.0588784,2395.6,2395.5,5.05097291]
[1730759893851,0.20829251,2395.6,2395.5,5.05097291]
[1730759894366,0.20829251,2395.6,2395.5,4.8181556]
[1730759894567,0.20829251,2395.6,2395.5,5.05069231]
[1730759894776,0.0588784,2395.6,2395.5,5.05069231]
[1730759895262,0.20829251,2395.6,2395.5,5.05069231]
[1730759895476,0.0588784,2395.6,2395.5,5.05069231]
[1730759896255,0.0588784,2395.6,2395.5,4.8181556]
[1730759897900,0.2087948,2395.6,2395.5,4.8181556]
[1730759905011,0.2087948,2395.6,2395.5,7.8181556]
[1730759905920,0.0588784,2395.6,2395.5,8.5952556]
[1730759907211,0.0588784,2395.6,2395.5,8.82749419]
[1730759912215,0.0588784,2395.6,2395.5,10.58611664]
[1730759914089,0.0588784,2395.6,2395.5,10.95762646]
[1730759914293,0.0588784,2395.6,2395.5,10.58611664]
[1730759914490,0.0588784,2395.6,2395.5,10.95768872]
[1730759914922,0.0588784,2395.6,2395.5,9.19906627]
[1730759917188,0.0588784,2395.6,2395.5,9.20906627]
[1730759917428,0.0588784,2395.6,2395.5,9.19906627]
[1730759917743,0.0588784,2395.6,2395.5,9.19928251]
[1730759917898,0.0588784,2395.6,2395.5,9.20928251]
[1730759918728,0.0588784,2395.6,2395.5,9.19928251]
[1730759918931,0.0588784,2395.6,2395.5,9.20928251]
[1730759920034,0.0588784,2395.6,2395.5,9.19851119]
[1730759920253,8.4e-06,2395.6,2395.5,15.37213364]
[1730759920548,8.4e-06,2395.6,2395.5,15.79928726]
[1730759920751,8.4e-06,2395.6,2395.5,16.186043]
[1730759921062,0.788,2396.5,2396.0,0.7691]
[1730759921216,0.788,2396.5,2396.4,4.17292]
[1730759923918,0.7747,2396.7,2396.6,4.17257]
[1730759924118,1.64507872,2396.7,2396.6,4.17257]
[1730759924325,0.7747,2396.7,2396.6,4.17257]
[1730759925153,0.92925712,2396.8,2396.6,4.17257]
[1730759925154,0.0588784,2396.8,2396.7,4.1724]
[1730759927482,0.0588784,2396.8,2396.7,4.9564]
[1730759928744,0.0588784,2396.8,2396.7,4.1724]
[1730759930442,0.2001801,2396.8,2396.7,4.1724]
[1730759930682,0.0588784,2396.8,2396.7,5.1740799]
[1730759930981,0.0588784,2396.8,2396.7,6.0013799]
[1730759931176,0.0588784,2396.8,2396.7,9.0013799]
[1730759931885,0.0588784,2396.8,2396.7,9.23256174]
[1730759934788,0.0588784,2396.8,2396.7,8.40526174]
[1730759935141,0.0588784,2396.8,2396.7,8.40493192]
[1730759935345,0.0588784,2396.8,2396.7,8.1740799]
[1730759936587,0.20087839,2396.8,2396.7,8.1740799]
[1730759936790,0.0588784,2396.8,2396.7,8.1740799]
[1730759937080,0.20087215,2396.8,2396.7,8.1740799]
[1730759938225,0.99737215,2396.8,2396.7,4.1724]
[1730759938929,0.99737215,2396.8,2396.6,4.17242]
[1730759939213,0.7965,2396.7,2396.5,4.17274]
[1730759939600,0.7965,2396.7,2396.6,4.17257]
[1730759939779,0.7965,2396.7,2396.5,4.17274]
[1730759939985,0.7965,2396.7,2396.5,8.34538]
[1730759940297,0.7965,2396.7,2396.5,4.17263]
[1730759941636,0.7965,2396.7,2396.4,4.17282]
[1730759942149,0.7965,2396.7,2396.3,4.17298]
[1730759942150,4.17302,2396.4,2395.9,4.17369]
[1730759942281,4.17302,2396.4,2395.8,4.17395]
[1730759942282,0.7605,2396.3,2395.8,8.34781]
[1730759942477,0.7605,2396.3,2395.9,4.17374]
[1730759942724,0.7605,2396.2,2395.8,4.17386]
[1730759942926,0.7605,2396.2,2395.9,4.17377]
[1730759943304,0.7605,2396.2,2395.8,4.17386]
[1730759943843,0.7605,2396.2,2395.4,0.7734]
[1730759943844,0.7605,2395.8,2395.4,4.17457]
[1730759944005,0.7605,2395.8,2395.4,0.01]
[1730759944335,0.7605,2395.8,2395.7,4.17414]
[1730759948168,0.7605,2395.8,2395.4,4.17457]
[1730759948325,0.7605,2395.8,2395.5,4.17449]
[1730759949429,0.7605,2395.8,2395.6,0.834906]
[1730759949664,0.7605,2395.8,2395.6,5.009186]
[1730759949865,0.7605,2395.8,2395.6,4.17428]
[1730759953163,0.7605,2395.8,2395.6,4.17422]
[1730759953380,0.7605,2395.8,2395.5,4.17448]
[1730759953779,0.14030986,2395.7,2395.5,4.17448]
[1730759953982,0.7605,2395.8,2395.5,5.009387]
[1730759954197,0.14030986,2395.7,2395.5,5.009387]
[1730759954568,0.7605,2395.8,2395.5,5.009387]
[1730759954766,0.1403161,2395.7,2395.5,5.009387]
[1730759954957,0.7605,2395.8,2395.5,5.009387]
[1730759955155,0.1403161,2395.7,2395.5,5.009387]
[1730759955352,0.7605,2395.8,2395.5,5.009387]
[1730759955599,0.1403161,2395.7,2395.5,4.17449]
[1730759956098,0.7605,2395.8,2395.5,4.17449]
[1730759956261,0.14029738,2395.6,2395.5,4.17449]
[1730759956458,0.7605,2395.8,2395.5,4.17449]
[1730759956666,0.14029738,2395.6,2395.5,4.17449]
[1730759956858,0.7605,2395.8,2395.0,0.8222]
[1730759957087,0.14029738,2395.6,2395.4,8.34902]
[1730759957263,0.7605,2395.8,2395.4,8.34902]
[1730759957264,0.14025994,2395.7,2395.4,8.34902]
[1730759957595,0.14025994,2395.6,2395.4,8.34902]
[1730759957888,0.7605,2395.8,2395.4,8.34902]
[1730759958112,0.14025994,2395.5,2395.4,7.1745]
[1730759958279,0.7605,2395.8,2395.4,8.309439]
[1730759958480,0.14025994,2395.5,2395.4,8.309439]
[1730759958676,0.7605,2395.8,2395.4,8.309439]
[1730759958875,0.95875994,2395.5,2395.4,7.1745]
[1730759959106,0.8185,2395.5,2395.4,7.1745]
[1730759959281,0.95871625,2395.5,2395.4,7.1745]
[1730759959881,0.95871625,2395.5,2395.2,4.17495]
[1730759960080,0.8185,2395.5,2395.2,4.17495]
[1730759960313,0.14014136,2395.4,2395.2,4.17495]
[1730759961900,0.14014136,2395.4,2395.1,0.08349166]
[1730759962084,0.7923,2395.3,2395.0,4.17526]
[1730759962413,0.13998531,2395.2,2395.0,4.17526]
[1730759962915,0.7923,2395.3,2395.0,4.17526]
[1730759963126,0.13996658,2395.1,2395.0,4.17526]
[1730759963624,0.7923,2395.3,2395.0,4.17526]
[1730759963782,0.13996658,2395.1,2395.0,4.17526]
[1730759963980,0.7923,2395.3,2395.0,4.17526]
[1730759964245,0.13996658,2395.2,2395.0,4.17526]
[1730759964725,0.7923,2395.3,2394.8,5.52511821]
[1730759964726,0.7923,2395.3,2394.9,4.17553]
[1730759964906,0.13996658,2395.1,2394.9,4.17553]
[1730759965217,0.13996658,2395.0,2394.9,4.17553]
[1730759965634,0.7923,2395.3,2395.1,4.17504]
[1730759965918,0.7923,2395.3,2395.1,4.17505]
[1730759966092,0.7923,2395.3,2395.1,0.08349429]
[1730759966296,0.7923,2395.3,2395.2,4.17501]
[1730759966486,0.8047,2395.6,2395.4,4.17458]
[1730759966826,0.7876,2395.9,2395.5,4.17449]
[1730759967013,0.7876,2395.9,2395.7,4.17414]
[1730759968057,0.7876,2395.9,2395.7,8.34818]
[1730759968257,4.96126,2396.0,2395.5,4.17439]
[1730759968414,5.04156602,2396.0,2395.5,4.17439]
[1730759968612,5.04156602,2396.0,2395.5,4.17435]
[1730759968850,0.14009143,2395.9,2395.5,4.17435]
[1730759969058,0.14009143,2395.9,2395.6,4.17426]
[1730759973658,0.14009143,2395.9,2395.8,4.17397]
[1730759973961,0.14009143,2395.9,2395.8,4.40746245]
[1730759974115,1.67023385,2396.2,2395.8,0.23349245]
[1730759974321,1.67023385,2396.2,2396.1,4.17344]
[1730759974555,1.67023385,2396.2,2396.0,4.17361]
[1730759975054,1.67023385,2396.2,2396.1,4.17344]
[1730759975055,0.67334039,2396.2,2396.1,4.17344]
[1730759977667,0.67334039,2396.2,2396.0,8.34714]
[1730759977866,0.67334039,2396.2,2396.0,5.008244]
[1730759978062,0.67334039,2396.2,2396.1,4.17344]
[1730759980296,0.67334039,2396.2,2396.0,4.17353]
[1730759980988,0.67334039,2396.2,2396.0,8.34705]
[1730759981189,0.67334039,2396.2,2396.0,4.17352]
[1730759982699,0.87303727,2396.7,2396.4,4.17284]
[1730759982911,1.70211567,2396.8,2396.7,4.1724]
[1730759983133,0.0588784,2396.8,2396.7,4.1724]